[Event "Kupreichik Memorial Rapid 2019"]
[Site "Minsk"]
[Date "2019.08.15"]
[Round "1.40"]
[White "Lavrishchev, Matvei"]
[Black "Sarbay, Aleksandr"]
[Result "0-1"]
[ECO "B34"]
[WhiteElo "1175"]
[BlackElo "2115"]
[Annotator "NA"]
[PlyCount "122"]
[EventDate "2019.08.15"]
[EventType "swiss"]
[EventCountry "BLR"]
[SourceTitle "playchess.com"]
[Source "ChessBase"]
[SourceQuality "1"]
[TimeControl "900+10"]

1. e4 {[%emt 0:00:00]} c5 {[%emt 0:00:00]} 2. Nf3 {[%emt 0:00:00]} Nc6 {[%emt 0:00:00]} 3. d4 {[%emt 0:00:00]} cxd4 {[%emt 0:00:03]} 4. Nxd4 {[%emt 0:00:00]} g6 {[%emt 0:00:01]} 5. Nc3 {[%emt 0:00:04]} Bg7 {[%emt 0:00:03]} 6. Be3 {[%emt 0:00:06]} Nf6 {[%emt 0:00:03]} 7. f3 {[%emt 0:00:07]} O-O {[%emt 0:00:37]} 8. Bc4 {[%emt 0:00:07]} Qb6 {[%emt 0:00:19]} 9. Bb3 {[%emt 0:00:37]} Nxe4 {[%emt 0:00:13]} 10. fxe4 {[%emt 0:00:13]} Bxd4 {[%emt 0:00:17]} 11. Bxd4 {[%emt 0:00:20]} Qxd4 {[%emt 0:00:06]} 12. Qxd4 {[%emt 0:00:08]} Nxd4 {[%emt 0:00:01]} 13. O-O-O {[%emt 0:00:24]} Nc6 14. Nd5 {[%emt 0:00:48]} d6 {[%emt 0:02:10]} 15. Ba4 {[%emt 0:01:14]} Bg4 {[%emt 0:01:23]} 16. Rd2 {[%emt 0:00:21]} Rae8 {[%emt 0:00:28]} 17. h3 {[%emt 0:00:27]} Bd7 {[%emt 0:00:26]} 18. Re1 {[%emt 0:01:46]} Ne5 {[%emt 0:00:22]} 19. Bxd7 {[%emt 0:00:31]} Nxd7 {[%emt 0:00:02]} 20. Nc7 {[%emt 0:00:10]} Rc8 {[%emt 0:00:26]} 21. Nb5 {[%emt 0:00:21]} a6 {[%emt 0:00:21]} 22. Nc3 {[%emt 0:00:15]} Nb6 {[%emt 0:00:36]} 23. Nd5 {[%emt 0:00:45]} Nxd5 {[%emt 0:00:09]} 24. exd5 {[%emt 0:00:00]} Rc7 {[%emt 0:01:13]} 25. Rde2 {[%emt 0:00:03]} Re8 {[%emt 0:01:13]} 26. Kd2 {[%emt 0:00:51]} Kf8 {[%emt 0:00:15]} 27. Kd3 {[%emt 0:00:06]} Rec8 {[%emt 0:00:50]} 28. b3 {[%emt 0:00:37]} b5 {[%emt 0:00:13]} 29. Rf2 {[%emt 0:00:17]} Rc3+ {[%emt 0:00:36]} 30. Ke2 {[%emt 0:00:32]} Rxc2+ {[%emt 0:00:06]} 31. Kf1 {[%emt 0:00:01]} Rxf2+ {[%emt 0:00:09]} 32. Kxf2 {[%emt 0:00:01]} Rc2+ {[%emt 0:00:08]} 33. Re2 {[%emt 0:00:01]} Rxe2+ {[%emt 0:00:07]} 34. Kxe2 {[%emt 0:00:00]} e6 {[%emt 0:00:11]} 35. Ke3 {[%emt 0:00:05]} exd5 {[%emt 0:00:07]} 36. Kd4 {[%emt 0:00:01]} Ke7 {[%emt 0:00:16]} 37. Kxd5 {[%emt 0:00:02]} Kd7 {[%emt 0:00:10]} 38. h4 {[%emt 0:00:23]} f5 {[%emt 0:00:25]} 39. g3 {[%emt 0:00:04]} h6 {[%emt 0:00:08]} 40. b4 {[%emt 0:01:01]} g5 {[%emt 0:00:08]} 41. h5 {[%emt 0:00:00]} Kc7 {[%emt 0:00:28]} 42. a3 {[%emt 0:01:34]} Kd7 {[%emt 0:00:02]} 43. Kd4 {[%emt 0:00:02]} Ke6 {[%emt 0:00:08]} 44. g4 {[%emt 0:00:18]} fxg4 {[%emt 0:00:04]} 45. Ke3 {[%emt 0:00:01]} d5 {[%emt 0:00:03]} 46. Kf2 {[%emt 0:00:02]} d4 {[%emt 0:00:02]} 47. Kg3 {[%emt 0:00:03]} d3 {[%emt 0:00:01]} 48. Kf2 {[%emt 0:00:01]} g3+ {[%emt 0:00:01]} 49. Kf1 {[%emt 0:00:10]} d2 {[%emt 0:00:08]} 50. Ke2 {[%emt 0:00:04]} g2 {[%emt 0:00:04]} 51. Kxd2 {[%emt 0:00:03]} g1=Q {[%emt 0:00:02]} 52. a4 {[%emt 0:00:03]} bxa4 {[%emt 0:00:13]} 53. b5 {[%emt 0:00:01]} axb5 {[%emt 0:00:04]} 54. Kc3 {[%emt 0:00:01]} Qc5+ {[%emt 0:00:06]} 55. Kb2 {[%emt 0:00:02]} b4 {[%emt 0:00:04]} 56. Ka2 {[%emt 0:00:00]} a3 {[%emt 0:00:24]} 57. Kb3 {[%emt 0:00:15]} a2 {[%emt 0:00:14]} 58. Kxa2 {[%emt 0:00:09]} Qc2+ {[%emt 0:00:24]} 59. Ka1 {[%emt 0:00:06]} Qh2 {[%emt 0:00:03]} 60. Kb1 {[%emt 0:00:01]} b3 {[%emt 0:00:01]} 61. Kc1 {[%emt 0:00:07]} Qc2# {[%emt 0:00:02] Kd1 Ke5+} 0-1

[Event "Kupreichik Memorial Rapid 2019"]
[Site "Minsk"]
[Date "2019.08.15"]
[Round "2.11"]
[White "Sarbay, Aleksandr"]
[Black "Balashov, Yuri S"]
[Result "0-1"]
[ECO "C28"]
[WhiteElo "2115"]
[BlackElo "2474"]
[Annotator "ChessBase"]
[PlyCount "66"]
[EventDate "2019.08.15"]
[EventType "swiss"]
[EventCountry "BLR"]
[SourceTitle "playchess.com"]
[Source "ChessBase"]
[SourceQuality "1"]
[TimeControl "900+10"]

1. e4 {[%emt 0:00:00]} e5 {[%emt 0:00:00]} 2. Nc3 {[%emt 0:00:00]} Nc6 {[%emt 0:00:00]} 3. Bc4 {[%emt 0:00:00]} Nf6 {[%emt 0:00:04]} 4. d3 {[%emt 0:00:01]} Bc5 {[%emt 0:00:03]} 5. f4 {[%emt 0:00:05]} d6 {[%emt 0:00:02]} 6. Nf3 {[%emt 0:00:05]} a6 {[%emt 0:00:02]} 7. Nd5 {[%emt 0:01:31]} Bg4 {[%emt 0:02:29]} 8. c3 {[%emt 0:03:44]} O-O {[%emt 0:00:56]} 9. f5 {[%emt 0:01:25]} Nxd5 {[%emt 0:01:34]} 10. Bxd5 {[%emt 0:00:02]} Ne7 {[%emt 0:00:06]} 11. Bb3 {[%emt 0:00:35]} d5 {[%emt 0:00:27]} 12. Qe2 {[%emt 0:00:31]} Nxf5 {[%emt 0:02:15]} 13. Bxd5 {[%emt 0:02:43]} c6 {[%emt 0:00:36]} 14. Bb3 {[%emt 0:00:26]} Nh4 {[%emt 0:00:15]} 15. Bd2 {[%emt 0:02:29]} a5 {[%emt 0:00:41]} 16. a4 {[%emt 0:00:52]} Qb6 {[%emt 0:00:16]} 17. Bc2 {[%emt 0:00:42]} Qxb2 {[%emt 0:00:08]} 18. Rc1 {[%emt 0:00:21]} Ng6 {[%emt 0:00:47]} 19. h3 {[%emt 0:00:41]} Nf4 {[%emt 0:00:29]} 20. Bxf4 {[%emt 0:00:17]} exf4 {[%emt 0:00:02]} 21. hxg4 {[%emt 0:00:21]} Qxc1+ {[%emt 0:00:03]} 22. Qd1 {[%emt 0:00:37]} Qb2 {[%emt 0:00:07]} 23. d4 {[%emt 0:00:23]} Qxc3+ {[%emt 0:00:02]} 24. Qd2 {[%emt 0:00:16]} Bb4 {[%emt 0:00:10]} 25. Qxc3 {[%emt 0:00:21]} Bxc3+ {[%emt 0:00:02]} 26. Ke2 {[%emt 0:00:01]} Rfd8 {[%emt 0:00:25]} 27. e5 {[%emt 0:00:09]} h6 {[%emt 0:00:29]} 28. g5 {[%emt 0:00:11]} Bxd4 {[%emt 0:00:08]} 29. gxh6 {[%emt 0:00:06]} gxh6 {[%emt 0:00:58]} 30. Rxh6 {[%emt 0:00:14]} Bxe5 {[%emt 0:00:10]} 31. Nxe5 {[%emt 0:00:11]} Re8 {[%emt 0:00:01]} 32. Rh5 {[%emt 0:00:12]} f6 {[%emt 0:00:04]} 33. Bg6 {[%emt 0:00:28]} Rxe5+ {[%emt 0:00:02]} 0-1

[Event "Kupreichik Memorial Rapid 2019"]
[Site "Minsk"]
[Date "2019.08.15"]
[Round "2.16"]
[White "Mikhailovsky, Vladimir"]
[Black "Kharin, Mikhail"]
[Result "0-1"]
[ECO "A21"]
[WhiteElo "2209"]
[BlackElo "2156"]
[Annotator "NA"]
[PlyCount "128"]
[EventDate "2019.08.15"]
[EventType "swiss"]
[EventCountry "BLR"]
[SourceTitle "playchess.com"]
[Source "ChessBase"]
[SourceQuality "1"]
[TimeControl "900+10"]

1. c4 {[%emt 0:00:00]} e5 {[%emt 0:00:00]} 2. Nc3 {[%emt 0:00:00]} d6 {[%emt 0:00:06]} 3. g3 {[%emt 0:00:18]} g6 {[%emt 0:00:02]} 4. Bg2 {[%emt 0:00:04]} Bg7 {[%emt 0:00:02]} 5. Nf3 {[%emt 0:00:14]} f5 {[%emt 0:00:02]} 6. e4 {[%emt 0:01:21]} Nf6 {[%emt 0:00:16]} 7. exf5 {[%emt 0:00:21]} gxf5 {[%emt 0:00:06]} 8. d4 {[%emt 0:00:04]} e4 {[%emt 0:02:11]} 9. Nh4 {[%emt 0:00:08]} O-O {[%emt 0:00:08]} 10. O-O {[%emt 0:00:09]} Nc6 {[%emt 0:00:18]} 11. Bg5 {[%emt 0:02:05]} Qe8 {[%emt 0:00:48]} 12. h3 {[%emt 0:05:13]} Bd7 {[%emt 0:01:45]} 13. Rc1 {[%emt 0:00:38]} Rc8 {[%emt 0:00:29]} 14. Re1 {[%emt 0:00:53]} Qf7 {[%emt 0:00:16]} 15. Ne2 {[%emt 0:01:36]} Nb4 {[%emt 0:01:09]} 16. Nf4 {[%emt 0:01:05]} h6 {[%emt 0:03:50]} 17. Bxf6 {[%emt 0:00:16]} Bxf6 {[%emt 0:00:38]} 18. Nhg6 {[%emt 0:01:34]} Rfe8 {[%emt 0:00:06]} 19. a3 {[%emt 0:01:02]} Nc6 {[%emt 0:01:30]} 20. d5 {[%emt 0:00:02]} Ne5 {[%emt 0:00:16]} 21. Nxe5 {[%emt 0:00:08]} Bxe5 {[%emt 0:00:15]} 22. Qd2 {[%emt 0:00:13]} Kh7 {[%emt 0:00:36]} 23. b4 {[%emt 0:00:39]} Rg8 {[%emt 0:00:20]} 24. c5 {[%emt 0:00:05]} Qf6 {[%emt 0:00:48]} 25. Rc2 {[%emt 0:00:23]} Ba4 {[%emt 0:00:34]} 26. Rc4 {[%emt 0:00:28]} Bb3 {[%emt 0:02:03]} 27. Rcc1 {[%emt 0:00:02]} Ba4 {[%emt 0:00:35]} 28. c6 {[%emt 0:00:22]} bxc6 {[%emt 0:00:11]} 29. dxc6 {[%emt 0:00:03]} Qg5 {[%emt 0:00:05]} 30. h4 {[%emt 0:00:21]} Bxf4 {[%emt 0:00:01]} 31. Qxf4 {[%emt 0:00:03]} Qxf4 {[%emt 0:00:02]} 32. gxf4 {[%emt 0:00:02]} Rg4 {[%emt 0:00:02]} 33. Re3 {[%emt 0:00:26]} Rcg8 {[%emt 0:00:18]} 34. Rg3 {[%emt 0:00:02]} Rxg3 {[%emt 0:00:01]} 35. fxg3 {[%emt 0:00:02]} Rxg3 {[%emt 0:00:02]} 36. Kf2 {[%emt 0:00:25]} Rxa3 {[%emt 0:00:04]} 37. Bf1 {[%emt 0:00:07]} Rf3+ {[%emt 0:00:06]} 38. Kg2 {[%emt 0:00:01]} Rxf4 39. Ra1 Bxc6 {[%emt 0:00:09]} 40. Rxa7 {[%emt 0:00:01]} e3+ {[%emt 0:00:05]} 41. Kg1 {[%emt 0:00:01]} Rg4+ {[%emt 0:00:10]} 42. Kh2 {[%emt 0:00:02]} Rg7 {[%emt 0:00:04]} 43. Ra3 {[%emt 0:00:28]} Re7 {[%emt 0:00:08]} 44. Rc3 {[%emt 0:00:22]} Bf3 {[%emt 0:00:27]} 45. Kg3 {[%emt 0:00:06]} e2 {[%emt 0:00:06]} 46. Bxe2 {[%emt 0:00:02]} Bxe2 {[%emt 0:00:01]} 47. Kf4 {[%emt 0:00:01]} Bg4 {[%emt 0:00:07]} 48. b5 {[%emt 0:00:02]} Kg6 {[%emt 0:00:07]} 49. b6 {[%emt 0:00:05]} cxb6 {[%emt 0:00:05]} 50. Rc6 {[%emt 0:00:02]} Re4+ {[%emt 0:00:09]} 51. Kg3 {[%emt 0:00:01]} Rd4 {[%emt 0:00:01]} 52. Rxb6 {[%emt 0:00:03]} Rd3+ {[%emt 0:00:04]} 53. Kg2 {[%emt 0:00:04]} Kh5 {[%emt 0:00:04]} 54. Rb2 {[%emt 0:00:04]} Kxh4 {[%emt 0:00:03]} 55. Kh2 {[%emt 0:00:02]} Re3 {[%emt 0:00:04]} 56. Kg1 {[%emt 0:00:09]} f4 {[%emt 0:00:07]} 57. Rh2+ {[%emt 0:00:02]} Rh3 {[%emt 0:00:12]} 58. Rd2 {[%emt 0:00:02]} Bf3 {[%emt 0:00:22]} 59. Rxd6 {[%emt 0:00:05]} Kg3 {[%emt 0:00:08]} 60. Rg6+ {[%emt 0:00:06]} Bg4 {[%emt 0:00:01]} 61. Ra6 {[%emt 0:00:15]} Rh2 {[%emt 0:00:26]} 62. Ra3+ {[%emt 0:00:53]} Bf3 {[%emt 0:00:02]} 63. Rxf3+ {[%emt 0:00:34]} Kxf3 {[%emt 0:00:01]} 64. Kxh2 {[%emt 0:00:02]} Ke2 {[%emt 0:00:01]} 0-1

[Event "Kupreichik Memorial Rapid 2019"]
[Site "Minsk"]
[Date "2019.08.15"]
[Round "2.17"]
[White "Zverev, Lev"]
[Black "Veremeichik, Vladimir"]
[Result "1/2-1/2"]
[ECO "B35"]
[WhiteElo "1881"]
[BlackElo "2282"]
[Annotator "NA"]
[PlyCount "108"]
[EventDate "2019.08.15"]
[EventType "swiss"]
[EventCountry "BLR"]
[SourceTitle "playchess.com"]
[Source "ChessBase"]
[SourceQuality "1"]
[TimeControl "900+10"]

1. e4 {[%emt 0:00:00]} c5 {[%emt 0:00:00]} 2. Nf3 {[%emt 0:00:00]} Nc6 {[%emt 0:00:00]} 3. d4 {[%emt 0:00:00]} cxd4 {[%emt 0:00:00]} 4. Nxd4 {[%emt 0:00:00]} g6 {[%emt 0:00:00]} 5. Nc3 {[%emt 0:00:01]} Bg7 {[%emt 0:00:00]} 6. Be3 {[%emt 0:00:02]} Nf6 {[%emt 0:00:00]} 7. Bc4 {[%emt 0:00:02]} Qa5 {[%emt 0:00:00]} 8. O-O {[%emt 0:00:04]} d6 {[%emt 0:00:03]} 9. h3 {[%emt 0:00:02]} O-O {[%emt 0:00:03]} 10. Bb3 {[%emt 0:00:02]} Bd7 {[%emt 0:00:01]} 11. Re1 {[%emt 0:00:01]} Rad8 {[%emt 0:00:26]} 12. Nf3 {[%emt 0:00:55]} Bc8 {[%emt 0:01:05]} 13. Qe2 {[%emt 0:00:13]} Qc7 {[%emt 0:00:54]} 14. Rad1 {[%emt 0:01:25]} b6 {[%emt 0:03:25]} 15. Nd5 {[%emt 0:00:16]} Qb7 {[%emt 0:00:06]} 16. Ba4 {[%emt 0:01:35]} Rfe8 {[%emt 0:01:16]} 17. c3 {[%emt 0:00:46]} Bd7 {[%emt 0:02:05]} 18. Bc2 {[%emt 0:00:30]} b5 {[%emt 0:01:43]} 19. Nd4 {[%emt 0:00:40]} Nxd5 {[%emt 0:01:25]} 20. exd5 {[%emt 0:00:07]} Na5 {[%emt 0:01:25]} 21. Be4 {[%emt 0:01:10]} Rc8 {[%emt 0:00:36]} 22. Bc1 {[%emt 0:00:46]} b4 {[%emt 0:00:21]} 23. cxb4 {[%emt 0:00:23]} Qxb4 {[%emt 0:00:06]} 24. Nc2 {[%emt 0:00:02]} Qc4 {[%emt 0:00:20]} 25. Qxc4 {[%emt 0:00:41]} Nxc4 {[%emt 0:00:04]} 26. Nd4 {[%emt 0:00:16]} Nb6 {[%emt 0:00:17]} 27. Nc6 {[%emt 0:03:55]} Bxc6 {[%emt 0:02:27]} 28. dxc6 {[%emt 0:00:05]} Bf8 {[%emt 0:00:02]} 29. Bf4 {[%emt 0:00:31]} d5 {[%emt 0:00:10]} 30. Bd3 {[%emt 0:00:21]} Nc4 {[%emt 0:00:24]} 31. Bxc4 {[%emt 0:00:50]} dxc4 {[%emt 0:00:01]} 32. c7 {[%emt 0:00:02]} f6 {[%emt 0:00:01]} 33. Rd7 {[%emt 0:00:03]} e5 {[%emt 0:00:02]} 34. Be3 {[%emt 0:00:07]} Re7 {[%emt 0:00:02]} 35. Rd8 {[%emt 0:01:14]} Rcxc7 {[%emt 0:00:02]} 36. Bh6 {[%emt 0:00:03]} Rg7 {[%emt 0:01:27]} 37. Bxg7 {[%emt 0:00:14]} Kxg7 {[%emt 0:00:01]} 38. Red1 {[%emt 0:00:01]} Bc5 {[%emt 0:00:37]} 39. R8d7+ {[%emt 0:00:08]} Rxd7 {[%emt 0:00:01]} 40. Rxd7+ {[%emt 0:00:01]} Kh6 {[%emt 0:00:00]} 41. Rc7 {[%emt 0:00:01]} Bd4 {[%emt 0:00:01]} 42. Rxc4 {[%emt 0:00:19]} Bxb2 {[%emt 0:00:02]} 43. Kh2 {[%emt 0:00:17]} Kg5 {[%emt 0:00:07]} 44. Kg3 {[%emt 0:00:02]} Kf5 {[%emt 0:00:03]} 45. Kf3 {[%emt 0:00:18]} h5 {[%emt 0:00:01]} 46. Rc6 {[%emt 0:00:23]} Bd4 {[%emt 0:00:07]} 47. Ke2 {[%emt 0:00:33]} h4 {[%emt 0:00:15]} 48. Rd6 {[%emt 0:00:09]} Bc5 {[%emt 0:00:08]} 49. Ra6 {[%emt 0:00:06]} Bb6 {[%emt 0:00:03]} 50. f3 {[%emt 0:00:12]} g5 {[%emt 0:00:05]} 51. Ra4 {[%emt 0:00:13]} Bd4 {[%emt 0:00:05]} 52. Ra6 {[%emt 0:00:03]} Bb6 {[%emt 0:00:02]} 53. Ra4 {[%emt 0:00:11]} Bd4 {[%emt 0:00:01]} 54. Ra6 {[%emt 0:00:11]} Bb6 {[%emt 0:00:01]} 1/2-1/2

[Event "Kupreichik Memorial Rapid 2019"]
[Site "Minsk"]
[Date "2019.08.15"]
[Round "2.19"]
[White "Melekhov, Artyom"]
[Black "Mochalov, Evgeny V"]
[Result "0-1"]
[ECO "B38"]
[WhiteElo "1471"]
[BlackElo "2374"]
[Annotator "NA"]
[PlyCount "110"]
[EventDate "2019.08.15"]
[EventType "swiss"]
[EventCountry "BLR"]
[SourceTitle "playchess.com"]
[Source "ChessBase"]
[SourceQuality "1"]
[TimeControl "900+10"]

1. e4 {[%emt 0:00:00]} c5 {[%emt 0:00:00]} 2. Nf3 {[%emt 0:00:00]} g6 {[%emt 0:00:00]} 3. d4 {[%emt 0:00:00]} cxd4 {[%emt 0:00:00]} 4. Nxd4 {[%emt 0:00:00]} Bg7 {[%emt 0:00:00]} 5. c4 {[%emt 0:00:04]} Nc6 {[%emt 0:00:13]} 6. Be3 {[%emt 0:00:36]} Nf6 {[%emt 0:00:03]} 7. Nc3 {[%emt 0:00:01]} O-O {[%emt 0:00:07]} 8. Be2 {[%emt 0:00:16]} d6 {[%emt 0:00:03]} 9. O-O {[%emt 0:00:14]} Bd7 {[%emt 0:00:04]} 10. Rc1 {[%emt 0:00:20]} Nxd4 {[%emt 0:00:19]} 11. Bxd4 {[%emt 0:00:23]} Bc6 {[%emt 0:00:34]} 12. e5 {[%emt 0:01:57]} dxe5 {[%emt 0:01:24]} 13. Bxe5 {[%emt 0:00:24]} Qa5 {[%emt 0:00:13]} 14. Bg3 {[%emt 0:01:21]} Ne4 {[%emt 0:04:52]} 15. Nxe4 {[%emt 0:07:04]} Bxe4 {[%emt 0:00:04]} 16. Qb3 {[%emt 0:01:20]} Qb6 {[%emt 0:02:16]} 17. Rcd1 {[%emt 0:03:34]} Bxb2 {[%emt 0:01:07]} 18. Qxb6 {[%emt 0:00:13]} axb6 {[%emt 0:00:01]} 19. Bd3 {[%emt 0:00:01]} Bc6 {[%emt 0:02:39]} 20. Bc7 {[%emt 0:00:02]} Ra6 {[%emt 0:02:31]} 21. Rd2 {[%emt 0:00:20]} Bc3 {[%emt 0:00:28]} 22. Rc2 {[%emt 0:00:01]} Bd4 {[%emt 0:00:03]} 23. Rb1 {[%emt 0:00:21]} Rc8 {[%emt 0:00:26]} 24. c5 {[%emt 0:00:12]} Ra3 {[%emt 0:00:17]} 25. cxb6 {[%emt 0:00:09]} Rxd3 {[%emt 0:00:50]} 26. Rxc6 {[%emt 0:00:10]} Bxb6 {[%emt 0:00:32]} 27. Rcxb6 {[%emt 0:00:04]} Rxc7 {[%emt 0:00:01]} 28. g3 {[%emt 0:00:08]} Rdd7 {[%emt 0:00:15]} 29. R1b2 {[%emt 0:00:07]} f6 {[%emt 0:00:05]} 30. Kg2 {[%emt 0:00:01]} Kf7 {[%emt 0:00:00]} 31. a4 {[%emt 0:00:02]} h5 32. a5 Rc5 {[%emt 0:00:14]} 33. a6 {[%emt 0:00:04]} bxa6 {[%emt 0:00:02]} 34. Rxa6 {[%emt 0:00:01]} h4 35. Ra4 {[%emt 0:00:03]} hxg3 {[%emt 0:00:22]} 36. hxg3 {[%emt 0:00:01]} g5 {[%emt 0:00:10]} 37. Rab4 {[%emt 0:00:05]} f5 {[%emt 0:00:10]} 38. Rb5 {[%emt 0:00:20]} Rdd5 {[%emt 0:00:08]} 39. Rxc5 {[%emt 0:00:01]} Rxc5 {[%emt 0:00:01]} 40. Rb7 {[%emt 0:00:09]} Kf6 {[%emt 0:00:01]} 41. Rb6+ {[%emt 0:00:01]} e6 {[%emt 0:00:02]} 42. Rb8 {[%emt 0:00:02]} Rc2 {[%emt 0:00:11]} 43. Rb6 {[%emt 0:00:06]} g4 {[%emt 0:00:04]} 44. Ra6 {[%emt 0:00:03]} Rd2 {[%emt 0:00:02]} 45. Kf1 {[%emt 0:00:14]} Ke5 {[%emt 0:00:11]} 46. Ra5+ {[%emt 0:00:02]} Ke4 {[%emt 0:00:05]} 47. Ke1 {[%emt 0:00:05]} Rb2 {[%emt 0:00:10]} 48. Ra4+ {[%emt 0:00:03]} Kf3 {[%emt 0:00:14]} 49. Ra3+ {[%emt 0:02:11]} Kg2 {[%emt 0:00:10]} 50. Re3 {[%emt 0:00:03]} Rxf2 {[%emt 0:00:15]} 51. Rxe6 {[%emt 0:00:01]} Kxg3 {[%emt 0:00:12]} 52. Re5 {[%emt 0:00:25]} f4 {[%emt 0:00:11]} 53. Re4 {[%emt 0:00:01]} Ra2 {[%emt 0:00:14]} 54. Rb4 {[%emt 0:00:20]} f3 {[%emt 0:00:12]} 55. Rb3 {[%emt 0:00:01]} Kg2 {[%emt 0:00:12]} 0-1

[Event "Kupreichik Memorial Rapid 2019"]
[Site "Minsk"]
[Date "2019.08.15"]
[Round "2.24"]
[White "Kuleshov, Konstantin"]
[Black "Kochetkov, Vitali"]
[Result "1-0"]
[ECO "D10"]
[WhiteElo "2076"]
[BlackElo "2266"]
[Annotator "NA"]
[PlyCount "87"]
[EventDate "2019.08.15"]
[EventType "swiss"]
[EventCountry "BLR"]
[SourceTitle "playchess.com"]
[Source "ChessBase"]
[SourceQuality "1"]
[TimeControl "900+10"]

1. d4 {[%emt 0:00:00]} d5 {[%emt 0:02:44]} 2. c4 {[%emt 0:00:00]} c6 {[%emt 0:00:04]} 3. e3 {[%emt 0:00:00]} e6 {[%emt 0:00:04]} 4. Nc3 {[%emt 0:00:00]} f5 {[%emt 0:00:08]} 5. Bd3 {[%emt 0:00:29]} Nf6 {[%emt 0:00:11]} 6. Nge2 {[%emt 0:00:03]} Bd6 {[%emt 0:00:30]} 7. f3 {[%emt 0:00:03]} O-O {[%emt 0:01:08]} 8. O-O {[%emt 0:00:04]} Qc7 {[%emt 0:00:23]} 9. h3 {[%emt 0:00:11]} dxc4 {[%emt 0:01:42]} 10. Bxc4 {[%emt 0:00:05]} b5 {[%emt 0:00:07]} 11. Bb3 {[%emt 0:00:10]} Kh8 {[%emt 0:00:38]} 12. a3 {[%emt 0:00:10]} e5 {[%emt 0:00:25]} 13. d5 {[%emt 0:00:42]} a6 {[%emt 0:00:09]} 14. e4 {[%emt 0:00:04]} c5 {[%emt 0:00:27]} 15. Be3 {[%emt 0:00:21]} f4 {[%emt 0:00:16]} 16. Bf2 {[%emt 0:00:02]} Nbd7 {[%emt 0:00:22]} 17. Rc1 {[%emt 0:00:03]} Qd8 {[%emt 0:00:29]} 18. Ba2 {[%emt 0:00:56]} Qe8 {[%emt 0:00:15]} 19. a4 {[%emt 0:00:04]} b4 {[%emt 0:00:27]} 20. Nb1 {[%emt 0:00:02]} a5 {[%emt 0:00:13]} 21. Nd2 {[%emt 0:00:06]} Nb6 {[%emt 0:00:19]} 22. Nc4 {[%emt 0:00:14]} Nxc4 {[%emt 0:00:19]} 23. Bxc4 {[%emt 0:00:02]} Ba6 {[%emt 0:00:12]} 24. Bxa6 {[%emt 0:00:05]} Rxa6 {[%emt 0:00:06]} 25. Bxc5 {[%emt 0:00:04]} Bxc5+ {[%emt 0:00:47]} 26. Rxc5 {[%emt 0:00:02]} Qd7 {[%emt 0:01:08]} 27. Qc2 {[%emt 0:00:04]} Ne8 {[%emt 0:00:49]} 28. Rc6 {[%emt 0:00:32]} Qa7+ {[%emt 0:00:24]} 29. Kh2 {[%emt 0:00:11]} Nd6 {[%emt 0:00:16]} 30. Qc5 {[%emt 0:00:13]} Qxc5 {[%emt 0:00:32]} 31. Rxc5 {[%emt 0:00:02]} Ra7 {[%emt 0:00:29]} 32. Rfc1 {[%emt 0:00:05]} Kg8 {[%emt 0:00:04]} 33. Rc6 {[%emt 0:00:08]} Rd8 {[%emt 0:00:04]} 34. R1c5 {[%emt 0:00:11]} Kf8 {[%emt 0:00:11]} 35. Nc1 {[%emt 0:00:04]} Nf7 {[%emt 0:00:25]} 36. Nb3 {[%emt 0:00:20]} Rda8 {[%emt 0:00:08]} 37. Kg1 {[%emt 0:00:40]} Ke7 {[%emt 0:00:06]} 38. Re6+ {[%emt 0:00:39]} Kf8 {[%emt 0:00:10]} 39. Kf2 {[%emt 0:00:06]} Ra6 {[%emt 0:00:36]} 40. Rxa6 {[%emt 0:00:03]} Rxa6 {[%emt 0:00:01]} 41. Rxa5 {[%emt 0:00:06]} Rb6 {[%emt 0:00:13]} 42. Ra7 {[%emt 0:00:20]} Rb8 {[%emt 0:00:17]} 43. Rc7 {[%emt 0:00:06]} Nd6 {[%emt 0:00:11]} 44. Nc5 {[%emt 0:00:10]} 1-0

[Event "Kupreichik Memorial Rapid 2019"]
[Site "Minsk"]
[Date "2019.08.15"]
[Round "2.25"]
[White "Arlou, Valery"]
[Black "Naumovich, Yaroslav"]
[Result "0-1"]
[ECO "D03"]
[WhiteElo "1759"]
[BlackElo "1868"]
[Annotator "NA"]
[PlyCount "90"]
[EventDate "2019.08.15"]
[EventType "swiss"]
[EventCountry "BLR"]
[SourceTitle "playchess.com"]
[Source "ChessBase"]
[SourceQuality "1"]
[TimeControl "900+10"]

1. d4 {[%emt 0:00:00]} Nf6 {[%emt 0:00:00]} 2. Nf3 {[%emt 0:00:00]} d5 {[%emt 0:00:00]} 3. Bg5 {[%emt 0:00:02]} c5 {[%emt 0:00:00]} 4. e3 {[%emt 0:00:04]} Nc6 {[%emt 0:00:01]} 5. c3 {[%emt 0:00:12]} Bg4 {[%emt 0:00:20]} 6. h3 {[%emt 0:00:04]} Bh5 {[%emt 0:00:02]} 7. Be2 {[%emt 0:00:26]} e6 {[%emt 0:00:04]} 8. Ne5 {[%emt 0:00:27]} Bxe2 {[%emt 0:00:08]} 9. Qxe2 {[%emt 0:00:02]} Qb6 {[%emt 0:00:43]} 10. O-O {[%emt 0:02:52]} Ne4 {[%emt 0:01:21]} 11. Bf4 {[%emt 0:00:14]} Be7 {[%emt 0:00:23]} 12. f3 {[%emt 0:00:21]} Nd6 {[%emt 0:01:25]} 13. dxc5 {[%emt 0:00:37]} Qxc5 {[%emt 0:00:03]} 14. Nd2 {[%emt 0:00:20]} Nxe5 {[%emt 0:01:35]} 15. Bxe5 {[%emt 0:00:02]} O-O {[%emt 0:00:12]} 16. Kh2 {[%emt 0:02:07]} f6 {[%emt 0:00:52]} 17. Bd4 {[%emt 0:01:23]} Qc7 {[%emt 0:00:04]} 18. e4 {[%emt 0:00:04]} Nxe4+ {[%emt 0:00:06]} 19. Kg1 {[%emt 0:00:20]} Nxd2 {[%emt 0:00:28]} 20. Qxd2 {[%emt 0:00:23]} e5 {[%emt 0:01:00]} 21. Bf2 {[%emt 0:00:11]} Rad8 {[%emt 0:00:16]} 22. Qe2 {[%emt 0:00:55]} Rfe8 {[%emt 0:00:47]} 23. Rad1 {[%emt 0:00:06]} a6 {[%emt 0:01:55]} 24. Qc2 {[%emt 0:00:55]} Qc4 {[%emt 0:02:23]} 25. b3 {[%emt 0:00:56]} Qc6 {[%emt 0:00:02]} 26. Qb2 {[%emt 0:00:59]} Rc8 {[%emt 0:00:54]} 27. Rc1 {[%emt 0:01:55]} Red8 {[%emt 0:00:03]} 28. Rfd1 {[%emt 0:00:07]} f5 {[%emt 0:00:55]} 29. Qb1 {[%emt 0:00:12]} g6 {[%emt 0:00:10]} 30. h4 {[%emt 0:00:23]} Ba3 {[%emt 0:00:29]} 31. Rc2 {[%emt 0:00:02]} Bc5 {[%emt 0:00:53]} 32. Bxc5 {[%emt 0:00:34]} Qxc5+ {[%emt 0:00:01]} 33. Kh2 {[%emt 0:00:04]} d4 {[%emt 0:00:39]} 34. c4 {[%emt 0:00:53]} d3 {[%emt 0:00:23]} 35. Rcd2 {[%emt 0:00:03]} e4 {[%emt 0:00:02]} 36. fxe4 {[%emt 0:00:16]} fxe4 {[%emt 0:00:00]} 37. Qb2 {[%emt 0:00:11]} Rf8 {[%emt 0:00:22]} 38. Qc3 {[%emt 0:01:04]} Rf4 {[%emt 0:01:17]} 39. g3 {[%emt 0:00:30]} Rf2+ {[%emt 0:00:01]} 40. Rxf2 {[%emt 0:00:19]} Qxf2+ {[%emt 0:00:01]} 41. Kh3 {[%emt 0:00:08]} Rd8 {[%emt 0:01:09]} 42. Rd2 {[%emt 0:00:35]} Qf5+ {[%emt 0:00:02]} 43. Kh2 {[%emt 0:00:03]} e3 {[%emt 0:00:01]} 44. Rd1 {[%emt 0:00:09]} e2 {[%emt 0:00:16]} 45. Qe1 {[%emt 0:00:15]} exd1=Q {[%emt 0:00:09]} 0-1